lending/lending_fUSD_20241014
["ID","MTS","AMOUNT","RATE_DAILY","PERIOD"]
[340226243,1728864055277,200.0,0.00010137,2]
[340226244,1728864076250,275.16,0.00010137,2]
[340226245,1728864084068,218.71,0.00010144,2]
[340226246,1728864114541,262.38,9.924e-05,2]
[340226247,1728864154256,200.0,9.924e-05,2]
[340226248,1728864187051,12220.88,9.924e-05,2]
[340226249,1728864254085,551.77,8.219e-05,2]
[340226250,1728864296884,158.98,9.921e-05,2]
[340226251,1728864297106,158.98,9.971e-05,2]
[340226252,1728864306492,250.0,9.921e-05,2]
[340226265,1728864475930,23890.0,9.922e-05,2]
[340226266,1728864519919,550.0,0.0001,2]
[340226267,1728864525620,1585.83,9.921e-05,2]
[340226270,1728864632284,-496.230637,0.00010419,2]
[340226271,1728864632293,-96.13142445,0.00010472,2]
[340226272,1728864632337,-455.63857555,0.00010472,2]
[340226273,1728864632347,-244.36142445,0.00010495,2]
[340226274,1728864632359,-5.63857555,0.00010495,2]
[340226275,1728864632368,-150.0,0.00010726,2]
[340226276,1728864632377,-150.0,0.0001073,2]
[340226277,1728864632386,-150.0,0.00010739,2]
[340226278,1728864632396,-150.0,0.00010739,2]
[340226279,1728864632405,-58.05995945,0.0001074,2]
[340226280,1728864632416,-91.94004055,0.0001074,2]
[340226281,1728864632426,-150.0,0.00010751,2]
[340226282,1728864632435,-150.0,0.00010755,2]
[340226283,1728864632444,-150.0,0.00010762,2]
[340226284,1728864632452,-150.0,0.00010769,2]
[340226285,1728864632461,-163.347,0.0001078,2]
[340226286,1728864632470,-178.022,0.0001078,2]
[340226287,1728864632479,-150.0,0.0001078,2]
[340226288,1728864632488,-150.0,0.0001078,2]
[340226289,1728864632497,-150.0,0.0001079,2]
[340226290,1728864632506,-150.0,0.00010793,2]
[340226291,1728864632515,-150.0,0.00010797,2]
[340226292,1728864632524,-150.0,0.00010797,2]
[340226293,1728864632533,-150.0,0.00010802,2]
[340226294,1728864632542,-150.0,0.00010807,2]
[340226295,1728864632551,-150.0,0.00010823,2]
[340226296,1728864632559,-150.0,0.00010828,2]
[340226297,1728864632568,-150.0,0.00010854,2]
[340226298,1728864632577,-150.0,0.00010859,2]
[340226299,1728864632586,-133.17849945,0.00010865,2]
[340226300,1728864632597,-16.82150055,0.00010865,2]
[340226301,1728864632607,-150.0,0.00010869,2]
[340226302,1728864632616,-150.0,0.0001087,2]
[340226303,1728864632625,-133.62785986,0.0001088,2]
[340226304,1728864632636,-16.37214014,0.0001088,2]
[340226305,1728864632646,-150.0,0.00010887,2]
[340226306,1728864632655,-150.0,0.00010887,2]
[340226307,1728864632663,-150.0,0.00010898,2]
[340226308,1728864632673,-1992.2958,0.000109,2]
[340226309,1728864632682,-1383.0859,0.000109,2]
[340226311,1728864632691,-2083.42117467,0.000109,2]
[340226312,1728864632703,-430.59832533,0.000109,2]
[340226313,1728864632711,-179.02675744,0.000109,2]
[340226314,1728864632720,-7229.14214409,0.000109,2]
[340226315,1728864632730,-150.0,0.00010912,2]
[340226316,1728864632739,-150.0,0.00010922,2]
[340226317,1728864632749,-150.0,0.00010931,2]
[340226318,1728864632758,-150.0,0.00010934,2]
[340226319,1728864632769,-150.0,0.0001094,2]
[340226320,1728864632778,-169.34,0.00010942,2]
[340226321,1728864632788,-150.0,0.00010949,2]
[340226322,1728864632796,-208.73,0.00010959,2]
[340226323,1728864632806,-161.65,0.00010959,2]
[340226324,1728864632815,-250.0,0.00010959,2]
[340226325,1728864632823,-150.0,0.00010961,2]
[340226326,1728864632833,-150.0,0.00010973,2]
[340226327,1728864632842,-150.0,0.00010976,2]
[340226328,1728864632854,-150.0,0.00010978,2]
[340226329,1728864632863,-150.0,0.0001098,2]
[340226330,1728864632872,-150.0,0.00010981,2]
[340226331,1728864632882,-150.0,0.00010983,2]
[340226332,1728864632892,-150.0,0.00010985,2]
[340226333,1728864632902,-150.0,0.0001099,2]
[340226334,1728864632911,-175.62308792,0.0001099,2]
[340226335,1728864632921,-150.0,0.00010992,2]
[340226336,1728864632931,-150.0,0.00010992,2]
[340226337,1728864632941,-150.0,0.00010995,2]
[340226338,1728864632950,-150.0,0.00010996,2]
[340226339,1728864632959,-16854.0508702,0.00010997,2]
[340226340,1728864632969,-600.0,0.00011,2]
[340226341,1728864632978,-227596.58102637,0.00011,2]
[340226342,1728864632990,-5243.29172088,0.00011,2]
[340226343,1728864633002,-9805.61829163,0.00011,2]
[340226344,1728864633013,-2940.82726407,0.00011,2]
[340226345,1728864633025,-45063.46960216,0.00011,2]
[340226346,1728864633036,-8698.43382614,0.00011,2]
[340226347,1728864633048,-966.03305,0.00011,2]
[340226348,1728864633059,-952.93025219,0.00011,2]
[340226349,1728864633071,-278.60878409,0.00011,2]
[340226350,1728864633083,-541.65536624,0.00011,2]
[340226351,1728864633095,-6178.12542846,0.00011,2]
[340226352,1728864633109,-1117.29278568,0.00011,2]
[340226353,1728864633126,-1098.10124655,0.00011,2]
[340226354,1728864633139,-688.39999162,0.00011,2]
[340226355,1728864633151,-2194.55656055,0.00011,2]
[340226356,1728864633163,-808.71833459,0.00011,2]
[340226357,1728864633174,-20557.51940339,0.00011,2]
[340226358,1728864633197,-4773.11977575,0.00011,2]
[340226359,1728864633209,-12494.0,0.00011,2]
[340226360,1728864633220,-1963.7448324,0.00011,2]
[340226361,1728864633232,-2218.35862201,0.00011,2]
[340226362,1728864633243,-2035.89616596,0.00011,2]
[340226363,1728864633255,-3504.07490294,0.00011,2]
[340226368,1728864638452,-2984.0,0.00011,2]
[340226369,1728864638464,-173979.09565046,0.00011,2]
[340226370,1728864638475,-2901.32341379,0.00011,2]
[340226371,1728864638487,-2953.88686576,0.00011,2]
[340226372,1728864638498,-1264.43557993,0.00011,2]
[340226373,1728864638509,-4887.65969994,0.00011,2]
[340226374,1728864638520,-166570.90860235,0.00011,2]
[340226375,1728864638559,-6237.4585173,0.00011,2]
[340226376,1728864638571,-1221.2,0.00011,2]
[340226377,1728864638583,-1138.0,0.00011,2]
[340226378,1728864638594,-699.69900693,0.00011,2]
[340226379,1728864638615,-2353.02609704,0.00011,2]
[340226380,1728864638626,-1257.43565756,0.00011,2]
[340226381,1728864638722,-845.302431,0.00011,2]
[340226382,1728864638735,-1952.58547812,0.00011,2]
[340226383,1728864638746,-13142.68775836,0.00011,2]
[340226402,1728864640399,-540.0,0.00011,2]
[340226403,1728864640409,-1167.20808955,0.00011,2]
[340226404,1728864640453,-391.951146,0.00011,2]
[340226405,1728864640465,-4218.43884436,0.00011,2]
[340226406,1728864640511,-100045.32821675,0.00011,2]
[340226407,1728864640522,-1727.99999992,0.00011,2]
[340226408,1728864640618,-6664.80077973,0.00011,2]
[340226409,1728864640629,-634.59989641,0.00011,2]
[340226410,1728864640640,-465.7513167,0.00011,2]
[340226411,1728864640673,-794.79791123,0.00011,2]
[340226412,1728864640685,-5555.07151245,0.00011,2]
[340226413,1728864640729,-998.486475,0.00011,2]
[340226414,1728864640739,-256.704,0.00011,2]
[340226415,1728864640750,-2110.66568425,0.00011,2]
[340226416,1728864640761,-397.95,0.00011,2]
[340226417,1728864640772,-969.65529697,0.00011,2]
[340226418,1728864640782,-2383.28089997,0.00011,2]
[340226419,1728864640793,-623.78023298,0.00011,2]
[340226430,1728864643399,-4638.83211183,0.00011,2]
[340226431,1728864643410,-359.73856219,0.00011,2]
[340226432,1728864643421,-4924.92,0.00011,2]
[340226433,1728864643432,-6091.00000027,0.00011,2]
[340226434,1728864643454,-2087.29515458,0.00011,2]
[340226435,1728864643465,-5420.415,0.00011,2]
[340226436,1728864643475,-6306.89951231,0.00011,2]
[340226437,1728864643561,-268.86899065,0.00011,2]
[340226438,1728864643617,-1302.1840501,0.00011,2]
[340226439,1728864643629,-6130.62450001,0.00011,2]
[340226440,1728864643639,-46689.26708418,0.00011,2]
[340226441,1728864643650,-2286.63435,0.00011,2]
[340226442,1728864643670,-7300.0,0.00011,2]
[340226443,1728864643684,-393.8507,0.00011,2]
[340226444,1728864643695,-1250.0,0.00011,2]
[340226445,1728864643725,-1371.56063522,0.00011,2]
[340226447,1728864646339,-1073.12504633,0.00011,2]
[340226448,1728864646351,-5329.53545774,0.00011,2]
[340226449,1728864646463,-6239.9,0.00011,2]
[340226450,1728864646483,-81409.49999999,0.00011,2]
[340226451,1728864646501,-41094.540637,0.00011,2]
[340226459,1728864794391,157.05,9.927e-05,2]
[340226460,1728864798233,532.66,8.219e-05,2]
[340226461,1728864824370,158.91,9.92e-05,2]
[340226462,1728864890453,250.0,9.92e-05,2]
[340226463,1728864998570,90849.69657503,0.00010472,5]
[340226464,1728864998593,829.1765647,0.00010472,5]
[340226466,1728865051717,405.26,9.917e-05,2]
[340226467,1728865104199,250.0,9.911e-05,2]
[340226468,1728865185766,204.78,9.908e-05,2]
[340226469,1728865229735,160.0,9.909e-05,2]
[340226471,1728865407869,250.0,9.918e-05,2]
[340226472,1728865411823,523.26,8.219e-05,2]
[340226473,1728865511874,150.0,9.888e-05,2]
[340226474,1728865569970,158.29,9.893e-05,2]
[340226475,1728865585086,23900.0,9.89e-05,2]
[340226498,1728865630331,413.94,9.896e-05,2]
[340226499,1728865662569,781.65,9.887e-05,2]
[340226502,1728865719439,284.73,9.888e-05,2]
[340226503,1728865764969,170.95,9.901e-05,2]
[340226504,1728865790368,872.0,9.889e-05,2]
[340226506,1728865831532,-2695.39034277,0.00010372,2]
[340226507,1728865831541,-28.78018165,0.00010396,2]
[340226508,1728865831642,-127.83981835,0.00010396,2]
[340226509,1728865831651,-523.26,0.00010472,2]
[340226510,1728865831660,-2639.56053056,0.00010486,2]
[340226511,1728865831671,-55.8298122,0.00010486,2]
[340226512,1728865831680,-394.1701878,0.000106,2]
[340226513,1728865831699,-800.0,0.000106,2]
[340226514,1728865831710,-1501.22015496,0.000106,2]
[340226515,1728865831719,-472.91721238,0.000106,2]
[340226516,1728865831756,-429.23093366,0.000106,2]
[340226517,1728865831765,-300.0,0.00010699,2]
[340226518,1728865831774,-863.66802612,0.000107,2]
[340226521,1728865837583,-787.33197388,0.000107,2]
[340226523,1728865837593,-1000.0,0.000107,2]
[340226524,1728865837602,-1000.0,0.000107,2]
[340226525,1728865837611,-150.0,0.00010735,2]
[340226526,1728865837620,-150.0,0.00010745,2]
[340226527,1728865837629,-150.99,0.00010745,2]
[340226528,1728865837638,-150.0,0.00010764,2]
[340226529,1728865837649,-6601.05,0.00010766,2]
[340226530,1728865837659,-150.0,0.00010767,2]
[340226531,1728865837667,-150.0,0.00010777,2]
[340226532,1728865837676,-150.0,0.00010779,2]
[340226533,1728865837686,-150.0,0.00010787,2]
[340226534,1728865837694,-499.99,0.00010787,2]
[340226535,1728865837703,-150.0,0.00010798,2]
[340226536,1728865837712,-150.0,0.000108,2]
[340226537,1728865837721,-300.0,0.000108,2]
[340226538,1728865837730,-150.0,0.00010802,2]
[340226539,1728865837739,-150.0,0.00010803,2]
[340226540,1728865837748,-150.0,0.00010809,2]
[340226541,1728865837757,-150.0,0.00010813,2]
[340226542,1728865837766,-150.0,0.00010818,2]
[340226543,1728865837775,-150.0,0.00010821,2]
[340226544,1728865837784,-150.0,0.00010826,2]
[340226545,1728865837793,-150.0,0.0001084,2]
[340226546,1728865837802,-150.0,0.00010841,2]
[340226547,1728865837811,-150.0,0.00010841,2]
[340226548,1728865837820,-150.0,0.00010845,2]
[340226549,1728865837829,-150.0,0.00010851,2]
[340226550,1728865837838,-150.0,0.00010898,2]
[340226551,1728865837847,-185.50784364,0.000109,2]
[340226552,1728865837856,-151.34010265,0.000109,2]
[340226553,1728865837864,-2170.8932,0.000109,2]
[340226554,1728865837874,-1029.3117,0.000109,2]
[340226555,1728865837883,-355.7179,0.000109,2]
[340226556,1728865837892,-1070.24714424,0.000109,2]
[340226557,1728865837905,-1003.54624976,0.000109,2]
[340226558,1728865837916,-1318.624706,0.000109,2]
[340226559,1728865837925,-173.97609633,0.000109,2]
[340226560,1728865837935,-1711.82971767,0.000109,2]
[340226561,1728865837950,-944.18934277,0.000109,2]
[340226562,1728865837961,-4335.45025213,0.000109,2]
[340226563,1728865837970,-241.6676905,0.000109,2]
[340226564,1728865837979,-974.66968186,0.000109,2]
[340226565,1728865837987,-461.89839963,0.000109,2]
[340226566,1728865837997,-150.0,0.00010904,2]
[340226567,1728865838006,-5152.6249,0.00010904,2]
[340226568,1728865838015,-150.0,0.00010912,2]
[340226569,1728865838024,-150.0,0.00010914,2]
[340226570,1728865838033,-150.0,0.0001092,2]
[340226571,1728865838042,-150.0,0.00010925,2]
[340226572,1728865838052,-150.0,0.00010925,2]
[340226573,1728865838061,-150.0,0.00010925,2]
[340226574,1728865838070,-150.0,0.00010939,2]
[340226575,1728865838079,-150.0,0.0001095,2]
[340226576,1728865838088,-150.0,0.0001095,2]
[340226577,1728865838097,-150.0,0.00010958,2]
[340226578,1728865838107,-158.96,0.00010959,2]
[340226579,1728865838116,-197.9,0.00010959,2]
[340226580,1728865838125,-250.0,0.00010959,2]
[340226581,1728865838135,-159.42,0.00010959,2]
[340226582,1728865838144,-150.0,0.00010959,2]
[340226583,1728865838154,-847.76,0.00010959,2]
[340226584,1728865838164,-150.0,0.00010968,2]
[340226585,1728865838173,-249.11338162,0.00010973,2]
[340226586,1728865838182,-500.0,0.00010973,2]
[340226587,1728865838192,-500.0,0.00010973,2]
[340226588,1728865838201,-150.0,0.00010975,2]
[340226589,1728865838211,-150.0,0.00010987,2]
[340226590,1728865838221,-150.0,0.00010997,2]
[340226591,1728865838230,-620.24944528,0.00010997,2]
[340226592,1728865838239,-3649.6761431,0.00010998,2]
[340226593,1728865838249,-213.33630603,0.00010999,2]
[340226594,1728865838258,-160.00780555,0.00010999,2]
[340226595,1728865838268,-500.0,0.00010999,2]
[340226596,1728865838277,-342.25911505,0.00010999,2]
[340226597,1728865838287,-699.0,0.00011,2]
[340226598,1728865838296,-311166.79861822,0.00011,2]
[340226599,1728865838308,-13013.75468089,0.00011,2]
[340226600,1728865838324,-8483.61398725,0.00011,2]
[340226602,1728865838335,-918.84607546,0.00011,2]
[340226604,1728865838346,-9820.31401503,0.00011,2]
[340226606,1728865838357,-677.06162226,0.00011,2]
[340226608,1728865838368,-308.79461567,0.00011,2]
[340226625,1728865839481,-2428.38918702,0.00011,2]
[340226626,1728865839541,-1469.6911387,0.00011,2]
[340226627,1728865839552,-4287.32239369,0.00011,2]
[340226628,1728865839563,-4019.09127962,0.00011,2]
[340226629,1728865839574,-315.6,0.00011,2]
[340226630,1728865839585,-93840.53247452,0.00011,2]
[340226631,1728865839598,-252.075,0.00011,2]
[340226632,1728865839657,-96904.15840643,0.00011,2]
[340226633,1728865839668,-783.24305322,0.00011,2]
[340226634,1728865839715,-1777.7292,0.00011,2]
[340226635,1728865839726,-2416.8108226,0.00011,2]
[340226637,1728865842549,-29142.31862841,0.00011,2]
[340226638,1728865842561,-17425.3167448,0.00011,2]
[340226639,1728865842572,-16268.07293523,0.00011,2]
[340226640,1728865842605,-786.09233624,0.00011,2]
[340226642,1728865845606,-634.0,0.00011,2]
[340226643,1728865845619,-505.9999995,0.00011,2]
[340226644,1728865845664,-15283.75980074,0.00011,2]
[340226645,1728865845675,-9831.76687634,0.00011,2]
[340226646,1728865845687,-8179.73972213,0.00011,2]
[340226647,1728865845699,-268.71844669,0.00011,2]
[340226648,1728865845726,-549.96057904,0.00011,2]
[340226649,1728865845784,-30337.93655765,0.00011,2]
[340226650,1728865845796,-11222.79440538,0.00011,2]
[340226651,1728865845844,-313.63101,0.00011,2]
[340226652,1728865845856,-502.770578,0.00011,2]
[340226672,1728865889540,3038.1,0.00027,60]
[340226673,1728866028371,504.27,8.222e-05,2]
[340226674,1728866069779,250.0,0.0001014,2]
[340226675,1728866154643,209.9,0.00010132,2]
[340226676,1728866270580,284.73,0.00010097,2]
[340226677,1728866286706,302.4,0.00010115,2]
[340226678,1728866342026,550.0,0.0001,2]
[340226679,1728866349510,-504.27,0.00010486,2]
[340226680,1728866349531,-838.795,0.00010898,2]
[340226681,1728866349551,-11195.84575008,0.00010899,2]
[340226682,1728866349572,-178.024,0.00010899,2]
[340226683,1728866349591,-9281.4807,0.000109,2]
[340226684,1728866349611,-189.69,0.00010959,2]
[340226685,1728866349630,-250.0,0.00010959,2]
[340226686,1728866349653,-157.09,0.00010959,2]
[340226687,1728866349673,-423.88,0.00010959,2]
[340226688,1728866349693,-363.79444402,0.00010973,2]
[340226689,1728866349712,-150.0,0.00010997,2]
[340226690,1728866349735,-166.80648005,0.00010997,2]
[340226691,1728866349754,-44450.32362585,0.00010998,2]
[340226696,1728866609725,111672.39,0.00010175,2]
[340226697,1728866629386,487.83,8.219e-05,2]
[340226699,1728866638430,1216.99,0.00010066,2]
[340226700,1728866638555,664.92,0.00010066,2]
[340226701,1728866659399,23900.0,0.00010078,2]
[340226702,1728866683158,304.79,0.00010078,2]
[340226703,1728866683883,250.0,0.00010078,2]
[340226704,1728866686740,184.72,0.00010078,2]
[340226705,1728866712355,205.7,9.888e-05,2]
[340226706,1728866875999,-487.83,0.0001048,2]
[340226707,1728866876019,-1941.69291641,0.000108,2]
[340226708,1728866876041,-250.0,0.00010865,2]
[340226709,1728866876062,-155.4,0.00010885,2]
[340226710,1728866876086,-170.37924262,0.000109,2]
[340226711,1728866876106,-162.26520813,0.000109,2]
[340226712,1728866876127,-167.7434075,0.000109,2]
[340226713,1728866876147,-7230.1903305,0.000109,2]
[340226714,1728866876169,-163.24,0.00010942,2]
[340226715,1728866876189,-163.24,0.00010949,2]
[340226716,1728866876208,-163.24,0.00010956,2]
[340226717,1728866876228,-748.64,0.00010958,2]
[340226718,1728866876248,-274.41,0.00010958,2]
[340226719,1728866876269,-250.0,0.00010959,2]
[340226720,1728866876292,-163.24,0.00010963,2]
[340226721,1728866876313,-163.24,0.0001097,2]
[340226722,1728866876335,-163.24,0.00010976,2]
[340226723,1728866876355,-163.24,0.00010983,2]
[340226724,1728866876376,-163.24,0.0001099,2]
[340226725,1728866876396,-163.24,0.00010997,2]
[340226726,1728866876417,-1000.0,0.00010997,2]
[340226727,1728866876437,-31152.90339581,0.00010998,2]
[340226728,1728866876457,-477.20756348,0.00010998,2]
[340226729,1728866876478,-300.02,0.00010999,2]
[340226730,1728866876498,-356.65,0.00010999,2]
[340226731,1728866876519,-150.0,0.00010999,2]
[340226732,1728866876540,-163.60863471,0.00010999,2]
[340226733,1728866876562,-642.0,0.00011,2]
[340226734,1728866876585,-152449.89930084,0.00011,2]
[340226763,1728867031786,-726.40524402,0.000109,2]
[340226767,1728867032173,-1738.13713802,0.000109,2]
[340226768,1728867032184,-3989.45713517,0.000109,2]
[340226769,1728867032196,-735.21595302,0.000109,2]
[340226770,1728867032206,-500.0,0.00010973,2]
[340226771,1728867032217,-8036.3911969,0.00010998,2]
[340226772,1728867032226,-150.0,0.00010999,2]
[340226773,1728867032236,-575.0,0.00011,2]
[340226774,1728867032246,-3498.45177336,0.00011,2]
[340226775,1728867032257,-858.16390953,0.00011,2]
[340226776,1728867032268,-1894.86731563,0.00011,2]
[340226777,1728867032280,-355.41834579,0.00011,2]
[340226778,1728867032291,-453.51,0.00011,2]
[340226786,1728867037864,-569.0,0.00011,2]
[340226787,1728867037874,-10105.00788766,0.00011,2]
[340226788,1728867037920,-282.32726454,0.00011,2]
[340226789,1728867037931,-4815.87904808,0.00011,2]
[340226790,1728867037942,-66939.01013559,0.00011,2]
[340226791,1728867038028,-546.52826524,0.00011,2]
[340226792,1728867038039,-5224.96062634,0.00011,2]
[340226793,1728867038083,-425.4,0.00011,2]
[340226794,1728867038094,-5166.78580421,0.00011,2]
[340226795,1728867038106,-3408.6351534,0.00011,2]
[340226796,1728867038117,-724.97184001,0.00011,2]
[340226797,1728867038191,-10729.9312,0.00011,2]
[340226798,1728867038204,-1503.10643675,0.00011,2]
[340226799,1728867038216,-13326.05,0.00011,2]
[340226808,1728867039679,-337.49514654,0.00011,2]
[340226822,1728867039852,-449.03088406,0.00011,2]
[340226823,1728867039863,-685.08301683,0.00011,2]
[340226824,1728867039874,-418.43404489,0.00011,2]
[340226825,1728867039885,-21033.57546785,0.00011,2]
[340226826,1728867039897,-23064.68400395,0.00011,2]
[340226827,1728867039907,-4302.89567398,0.00011,2]
[340226828,1728867039919,-3297.81886019,0.00011,2]
[340226829,1728867039930,-8865.05047589,0.00011,2]
[340226830,1728867039942,-412.39,0.00011,2]
[340226831,1728867039953,-94441.16357893,0.00011,2]
[340226832,1728867039964,-1072.66280005,0.00011,2]
[340226833,1728867040009,-6981.09999818,0.00011,2]
[340226834,1728867040020,-27214.48604709,0.00011,2]
[340226835,1728867040032,-49690.07854395,0.00011,2]
[340226864,1728867042780,-509.0,0.00011,2]
[340226865,1728867042790,-807.26943275,0.00011,2]
[340226866,1728867042802,-12006.09200007,0.00011,2]
[340226867,1728867042888,-630.99339394,0.00011,2]
[340226868,1728867042899,-6180.65784,0.00011,2]
[340226869,1728867042995,-549.12224999,0.00011,2]
[340226870,1728867043049,-89934.17577706,0.00011,2]
[340226880,1728867045819,-119816.11250021,0.00011,2]
[340226881,1728867046001,-674.5000605,0.00011,2]
[340226882,1728867125354,439.04,9.425e-05,2]
[340226883,1728867502255,170.95,0.00010214,2]
[340226884,1728867518161,250.0,0.00010202,2]
[340226885,1728867603762,150.0,0.00010202,2]
[340226886,1728867604002,150.0,0.00010202,2]
[340226888,1728867604243,150.0,0.00010202,2]
[340226890,1728867604542,150.0,0.00010202,2]
[340226891,1728867604806,150.0,0.00010202,2]
[340226893,1728867605056,225.81542262,0.00010202,2]
[340226894,1728867611001,434.24,8.219e-05,2]
[340226895,1728867626431,8192.48,9.753e-05,2]
[340226896,1728867656530,522.71,9.763e-05,2]
[340226897,1728867686525,500.0,9.749e-05,2]
[340226898,1728867716032,250.0,9.763e-05,2]
[340226899,1728867762770,406.38,9.753e-05,2]
[340226900,1728867803233,167.92,9.759e-05,2]
[340226901,1728867807851,23900.0,9.768e-05,2]
[340226902,1728867913439,150.0,9.888e-05,2]
[340226903,1728867934676,802.28,9.761e-05,2]
[340226904,1728867981911,-457.382313,0.00010411,2]
[340226905,1728867981935,-434.24,0.00010464,2]
[340226906,1728867981958,-1344.02,0.00010495,2]
[340226907,1728867981981,-1344.02,0.00010498,2]
[340226908,1728867982004,-1344.02,0.00010501,2]
[340226909,1728867982027,-1344.02,0.00010504,2]
[340226910,1728867982050,-1344.02,0.00010506,2]
[340226911,1728867982073,-1344.02,0.00010509,2]
[340226912,1728867982096,-300.0,0.00010511,2]
[340226913,1728867982119,-1344.02,0.00010512,2]
[340226914,1728867982143,-1344.02,0.00010515,2]
[340226915,1728867982166,-1344.02,0.00010518,2]
[340226916,1728867982332,-396.65,0.0001052,2]
[340226917,1728867982353,-1344.02,0.0001052,2]
[340226918,1728867982373,-1344.02,0.00010523,2]
[340226919,1728867982394,-1344.02,0.00010526,2]
[340226920,1728867982415,-1344.02,0.00010529,2]
[340226921,1728867982435,-1344.02,0.00010531,2]
[340226922,1728867982456,-1344.02,0.00010534,2]
[340226923,1728867982478,-1344.02,0.00010537,2]
[340226924,1728867982499,-1344.02,0.0001054,2]
[340226925,1728867982520,-1344.02,0.00010542,2]
[340226926,1728867982540,-1344.02,0.00010545,2]
[340226927,1728867982561,-1344.02,0.00010548,2]
[340226928,1728867982581,-261.7444,0.00010898,2]
[340226929,1728867982601,-826.5722,0.00010898,2]
[340226930,1728867982621,-150.0,0.00010899,2]
[340226931,1728867982642,-1000.0,0.000109,2]
[340226932,1728867982665,-1000.0,0.000109,2]
[340226933,1728867982686,-6470.29392318,0.000109,2]
[340226934,1728867982708,-61822.71716382,0.000109,2]
[340226935,1728868164270,550.0,0.0001,2]
[340226937,1728868221627,407.8,8.482e-05,2]
[340226939,1728868231892,-155.28,0.00010328,2]
[340226940,1728868231902,-173.86260328,0.0001033,2]
[340226941,1728868231914,-300.0,0.0001033,2]
[340226942,1728868231925,-145.98739672,0.0001033,2]
[340226943,1728868231938,-250.0,0.00010441,2]
[340226944,1728868231948,-440.34,0.00010467,2]
[340226945,1728868232048,-758.08,0.0001055,2]
[340226946,1728868232087,-172.12,0.00010565,2]
[340226947,1728868232097,-407.8,0.00010746,2]
[340226948,1728868232106,-4311.43811534,0.000108,2]
[340226949,1728868232118,-1677.4496528,0.000108,2]
[340226950,1728868232129,-748.09313186,0.000108,2]
[340226951,1728868232138,-2420.41716267,0.000108,2]
[340226952,1728868232150,-1466.14126311,0.000108,2]
[340226953,1728868232161,-361.13037422,0.000108,2]
[340226954,1728868232170,-150.0,0.00010899,2]
[340226955,1728868232180,-38177.28283618,0.000109,2]
[340226956,1728868232192,-500.0,0.000109,2]
[340226957,1728868232201,-167.75373016,0.000109,2]
[340226958,1728868232212,-34288.0602,0.000109,2]
[340226959,1728868232221,-262.3564,0.000109,2]
[340226960,1728868232230,-326.1077,0.000109,2]
[340226961,1728868232239,-490.1147,0.000109,2]
[340226962,1728868232248,-13963.78082503,0.000109,2]
[340226963,1728868232517,-13593.50530135,0.000109,2]
[340226964,1728868232528,-682.19,0.000109,2]
[340226965,1728868232539,-460.43123519,0.000109,2]
[340226966,1728868237946,-5823.26453088,0.00010899,2]
[340226967,1728868237956,-27296.37891382,0.000109,2]
[340226968,1728868237968,-4251.18448779,0.000109,2]
[340226969,1728868238064,-2926.27464045,0.000109,2]
[340226970,1728868238126,-566.31260507,0.000109,2]
[340226971,1728868238138,-52458.61,0.000109,2]
[340226972,1728868239857,-3868.2,0.000109,2]
[340226973,1728868239920,-3504.1443,0.000109,2]
[340226974,1728868239932,-491.68000001,0.000109,2]